[Event "Live Chess"]
[Site "Chess.com"]
[Date "2023.05.20"]
[Round "-"]
[White "Greenbecker"]
[Black "KeithArkell"]
[Result "0-1"]
[WhiteElo "1626"]
[BlackElo "2610"]
[TimeControl "300"]
[EndTime "12:13:47 PDT"]
[Termination "KeithArkell won by resignation"]

1. e4 {[%clk 0:04:56.7]} 1... c6 {[%clk 0:04:55.8]} 2. d4 {[%clk 0:04:54.7]}
2... d5 {[%clk 0:04:55]} 3. exd5 {[%clk 0:04:53.5]} 3... cxd5 {[%clk 0:04:54.4]}
4. Bd3 {[%clk 0:04:52.7]} 4... Nf6 {[%clk 0:04:53.7]} 5. Nf3 {[%clk 0:04:52.2]}
5... Nc6 {[%clk 0:04:53]} 6. O-O {[%clk 0:04:51.1]} 6... Bg4 {[%clk 0:04:52.5]}
7. c3 {[%clk 0:04:49.5]} 7... e6 {[%clk 0:04:52]} 8. h3 {[%clk 0:04:48.5]} 8...
Bxf3 {[%clk 0:04:50.8]} 9. Qxf3 {[%clk 0:04:47.2]} 9... Be7 {[%clk 0:04:50.2]}
10. Re1 {[%clk 0:04:46.3]} 10... O-O {[%clk 0:04:49.4]} 11. Bg5 {[%clk
0:04:45.3]} 11... Ne8 {[%clk 0:04:47.5]} 12. Bxe7 {[%clk 0:04:42.8]} 12... Qxe7
{[%clk 0:04:45.4]} 13. Nd2 {[%clk 0:04:35.3]} 13... Qf6 {[%clk 0:04:44.5]} 14.
Re3 {[%clk 0:04:27.9]} 14... Qxf3 {[%clk 0:04:43]} 15. Nxf3 {[%clk 0:04:24.7]}
15... Nd6 {[%clk 0:04:42]} 16. Ne5 {[%clk 0:04:19.8]} 16... Rfd8 {[%clk
0:04:40.4]} 17. Nxc6 {[%clk 0:04:16.6]} 17... bxc6 {[%clk 0:04:39.3]} 18. b3
{[%clk 0:04:14.1]} 18... a5 {[%clk 0:04:38.5]} 19. Bc2 {[%clk 0:04:00]} 19...
Rdc8 {[%clk 0:04:35.6]} 20. Rc1 {[%clk 0:03:49.8]} 20... c5 {[%clk 0:04:33.3]}
21. dxc5 {[%clk 0:03:46]} 21... Rxc5 {[%clk 0:04:32.2]} 22. Bd3 {[%clk
0:03:13.5]} 22... Rac8 {[%clk 0:04:27]} 23. Kh2 {[%clk 0:03:06.4]} 23... g6
{[%clk 0:04:26.3]} 24. Bb1 {[%clk 0:02:14.1]} 24... Kg7 {[%clk 0:04:16.2]} 25.
Rd3 {[%clk 0:02:09.3]} 25... Nb5 {[%clk 0:04:12.2]} 26. c4 {[%clk 0:01:35.9]}
26... dxc4 {[%clk 0:04:11]} 27. bxc4 {[%clk 0:01:35.2]} 27... Rxc4 {[%clk
0:04:10.2]} 28. Rxc4 {[%clk 0:01:34]} 28... Rxc4 {[%clk 0:04:09.3]} 29. Rb3
{[%clk 0:01:32.8]} 29... Rb4 {[%clk 0:04:06.5]} 30. Rxb4 {[%clk 0:01:29.9]}
30... axb4 {[%clk 0:04:05.3]} 31. Bc2 {[%clk 0:01:28.5]} 31... Nd4 {[%clk
0:04:01.4]} 32. Bb1 {[%clk 0:01:24.7]} 32... f5 {[%clk 0:03:59.2]} 33. Kg3
{[%clk 0:01:23]} 33... e5 {[%clk 0:03:58.6]} 34. f3 {[%clk 0:01:19.9]} 34... f4+
{[%clk 0:03:54.6]} 35. Kf2 {[%clk 0:01:18.9]} 35... Kf6 {[%clk 0:03:54]} 36. Ke1
{[%clk 0:01:16.3]} 36... Nb5 {[%clk 0:03:49.1]} 37. Bc2 {[%clk 0:01:07]} 37...
Nd4 {[%clk 0:03:47.5]} 38. Bd3 {[%clk 0:01:03.1]} 38... Kg5 {[%clk 0:03:44.7]}
39. Kf2 {[%clk 0:00:53.6]} 39... Kh4 {[%clk 0:03:43.5]} 40. Bc4 {[%clk
0:00:51.7]} 40... g5 {[%clk 0:03:42.8]} 41. Bg8 {[%clk 0:00:48.4]} 41... h5
{[%clk 0:03:41.8]} 42. Bc4 {[%clk 0:00:45.7]} 42... g4 {[%clk 0:03:41.2]} 43.
hxg4 {[%clk 0:00:44.5]} 43... hxg4 {[%clk 0:03:41.1]} 44. fxg4 {[%clk
0:00:42.7]} 44... Kxg4 {[%clk 0:03:41]} 45. Bf7 {[%clk 0:00:39.2]} 45... e4
{[%clk 0:03:40]} 46. Bd5 {[%clk 0:00:33.3]} 46... e3+ {[%clk 0:03:39.2]} 47. Ke1
{[%clk 0:00:32.1]} 47... Kg3 {[%clk 0:03:36.3]} 48. Bb7 {[%clk 0:00:28.8]} 48...
Nb5 {[%clk 0:03:28.9]} 49. Ke2 {[%clk 0:00:22.3]} 49... Nc3+ {[%clk 0:03:27.9]}
50. Kd3 {[%clk 0:00:19.7]} 50... Nxa2 {[%clk 0:03:27.1]} 51. Kc4 {[%clk
0:00:18.6]} 51... e2 {[%clk 0:03:25.7]} 0-1

[Event "Live Chess"]
[Site "Chess.com"]
[Date "2023.05.20"]
[Round "-"]
[White "Hoogleboogle"]
[Black "booktrunk"]
[Result "1-0"]
[WhiteElo "1386"]
[BlackElo "1322"]
[TimeControl "300"]
[EndTime "12:13:50 PDT"]
[Termination "Hoogleboogle won by checkmate"]

1. d4 {[%clk 0:04:57.1]} 1... d6 {[%clk 0:04:59.6]} 2. c4 {[%clk 0:04:53.1]}
2... d5 {[%clk 0:04:59.5]} 3. Bf4 {[%clk 0:04:50.5]} 3... dxc4 {[%clk
0:04:58.2]} 4. e3 {[%clk 0:04:49.5]} 4... Bf5 {[%clk 0:04:53.4]} 5. Bxc4 {[%clk
0:04:46]} 5... e6 {[%clk 0:04:52.3]} 6. Nc3 {[%clk 0:04:44.3]} 6... Bd6 {[%clk
0:04:50.9]} 7. Bg3 {[%clk 0:04:42.4]} 7... Bxg3 {[%clk 0:04:49.4]} 8. hxg3
{[%clk 0:04:41.3]} 8... c6 {[%clk 0:04:47.3]} 9. Nf3 {[%clk 0:04:38.7]} 9... Nd7
{[%clk 0:04:45.2]} 10. Nh4 {[%clk 0:04:37]} 10... Bg6 {[%clk 0:04:39]} 11. Nxg6
{[%clk 0:04:35.6]} 11... fxg6 {[%clk 0:04:36.8]} 12. Bxe6 {[%clk 0:04:30.9]}
12... Qe7 {[%clk 0:04:35.6]} 13. Qg4 {[%clk 0:04:24.7]} 13... Ngf6 {[%clk
0:04:31.8]} 14. Bxd7+ {[%clk 0:04:21]} 14... Nxd7 {[%clk 0:04:30.5]} 15. Ke2
{[%clk 0:04:04.3]} 15... O-O-O {[%clk 0:04:28.9]} 16. Rh2 {[%clk 0:03:48.5]}
16... Kc7 {[%clk 0:04:27.7]} 17. Qf4+ {[%clk 0:03:39.1]} 17... Kc8 {[%clk
0:04:21.6]} 18. Rah1 {[%clk 0:03:36.9]} 18... h5 {[%clk 0:04:18.4]} 19. g4
{[%clk 0:03:32.2]} 19... g5 {[%clk 0:04:11.7]} 20. Qf5 {[%clk 0:03:27.6]} 20...
h4 {[%clk 0:04:06.5]} 21. g3 {[%clk 0:03:24.2]} 21... Rdf8 {[%clk 0:04:04.5]}
22. Qg6 {[%clk 0:03:08.9]} 22... Qb4 {[%clk 0:03:56.3]} 23. Qc2 {[%clk
0:02:49.8]} 23... Qc4+ {[%clk 0:03:43.9]} 24. Ke1 {[%clk 0:02:42.4]} 24... Nf6
{[%clk 0:03:32.2]} 25. gxh4 {[%clk 0:02:39.4]} 25... gxh4 {[%clk 0:03:30.8]} 26.
Rxh4 {[%clk 0:02:34.8]} 26... Rxh4 {[%clk 0:03:29.2]} 27. Rxh4 {[%clk
0:02:32.7]} 27... Ne4 {[%clk 0:03:27.8]} 28. Qxe4 {[%clk 0:02:25.1]} 28... Qf7
{[%clk 0:03:23.6]} 29. f4 {[%clk 0:02:21.3]} 29... Qf6 {[%clk 0:03:20.5]} 30. g5
{[%clk 0:02:11.6]} 30... Qd6 {[%clk 0:03:13.4]} 31. Rh7 {[%clk 0:02:06.6]} 31...
Qd7 {[%clk 0:03:11.6]} 32. Qe5 {[%clk 0:02:00.5]} 32... Re8 {[%clk 0:03:08.4]}
33. Qxg7 {[%clk 0:01:51.2]} 33... Rxe3+ {[%clk 0:03:05.4]} 34. Kd2 {[%clk
0:01:43.5]} 34... Qe8 {[%clk 0:03:00.9]} 35. Qc7# {[%clk 0:01:41.3]} 1-0

[Event "Live Chess"]
[Site "Chess.com"]
[Date "2023.05.20"]
[Round "-"]
[White "Leonid_Starozhilov"]
[Black "jusjoel"]
[Result "1-0"]
[WhiteElo "2653"]
[BlackElo "265"]
[TimeControl "300"]
[EndTime "12:13:53 PDT"]
[Termination "Leonid_Starozhilov won by resignation"]

1. b3 {[%clk 0:04:55.8]} 1... e5 {[%clk 0:04:42.2]} 2. Bb2 {[%clk 0:04:55.7]}
2... d6 {[%clk 0:04:37.5]} 3. d4 {[%clk 0:04:53.8]} 3... f6 {[%clk 0:04:25.8]}
4. e4 {[%clk 0:04:50.1]} 4... d5 {[%clk 0:04:09.2]} 5. dxe5 {[%clk 0:04:45.5]}
5... fxe5 {[%clk 0:04:06.2]} 6. Qh5+ {[%clk 0:04:41.1]} 6... Ke7 {[%clk
0:04:00]} 7. Qxe5+ {[%clk 0:04:35.1]} 7... Kd7 {[%clk 0:03:56.3]} 8. Qxd5+
{[%clk 0:04:33.7]} 8... Ke7 {[%clk 0:03:42.3]} 9. Ba3+ {[%clk 0:04:29.7]} 9...
Kf6 {[%clk 0:03:28.5]} 10. Qxd8+ {[%clk 0:04:25.9]} 10... Kf7 {[%clk 0:03:02.1]}
11. Bc4+ {[%clk 0:04:22.1]} 11... Be6 {[%clk 0:02:57.8]} 12. Qxf8+ {[%clk
0:04:20]} 12... Kg6 {[%clk 0:02:41.4]} 13. Bxe6 {[%clk 0:04:19.9]} 13... Nd7
{[%clk 0:02:37.4]} 14. Qf5+ {[%clk 0:04:12]} 1-0

[Event "Live Chess"]
[Site "Chess.com"]
[Date "2023.05.20"]
[Round "-"]
[White "Tema1107"]
[Black "HugeManAmin"]
[Result "1-0"]
[WhiteElo "1970"]
[BlackElo "1455"]
[TimeControl "300"]
[EndTime "12:13:55 PDT"]
[Termination "Tema1107 won by resignation"]

1. c4 {[%clk 0:04:49.6]} 1... e5 {[%clk 0:04:57.9]} 2. Nc3 {[%clk 0:04:48.8]}
2... Nc6 {[%clk 0:04:54.7]} 3. g3 {[%clk 0:04:48.2]} 3... Nf6 {[%clk 0:04:49.4]}
4. Bg2 {[%clk 0:04:46.3]} 4... d6 {[%clk 0:04:37.7]} 5. e3 {[%clk 0:04:43.3]}
5... Bf5 {[%clk 0:04:29.3]} 6. d3 {[%clk 0:04:34.1]} 6... Qe7 {[%clk 0:03:53.7]}
7. Nge2 {[%clk 0:04:31.8]} 7... O-O-O {[%clk 0:03:47.6]} 8. a3 {[%clk
0:04:27.1]} 8... Be6 {[%clk 0:03:15.1]} 9. Nd5 {[%clk 0:04:10.4]} 9... Bxd5
{[%clk 0:03:10.1]} 10. cxd5 {[%clk 0:04:10.2]} 10... Nb8 {[%clk 0:02:57.5]} 11.
b4 {[%clk 0:04:04.6]} 11... e4 {[%clk 0:02:46.3]} 12. dxe4 {[%clk 0:03:52]}
12... Nxe4 {[%clk 0:02:41.3]} 13. O-O {[%clk 0:03:50.5]} 13... Qe5 {[%clk
0:02:30.7]} 14. Qd4 {[%clk 0:03:46.3]} 14... Qxd4 {[%clk 0:02:15.5]} 15. Nxd4
{[%clk 0:03:46.2]} 15... Nf6 {[%clk 0:02:01.7]} 16. Bb2 {[%clk 0:03:41.2]} 16...
g6 {[%clk 0:01:45.3]} 17. Ne6 {[%clk 0:03:31]} 1-0

[Event "Live Chess"]
[Site "Chess.com"]
[Date "2023.05.20"]
[Round "-"]
[White "Salpingidis"]
[Black "GMHarry-youtube"]
[Result "1-0"]
[WhiteElo "2301"]
[BlackElo "2108"]
[TimeControl "300"]
[EndTime "12:13:59 PDT"]
[Termination "Salpingidis won by checkmate"]

1. d4 {[%clk 0:04:56.1]} 1... Nf6 {[%clk 0:04:58.8]} 2. c4 {[%clk 0:04:54.7]}
2... g6 {[%clk 0:04:58.3]} 3. Nc3 {[%clk 0:04:53.9]} 3... d5 {[%clk 0:04:56.4]}
4. cxd5 {[%clk 0:04:52.4]} 4... Nxd5 {[%clk 0:04:55.1]} 5. Bd2 {[%clk
0:04:51.9]} 5... Bg7 {[%clk 0:04:52.5]} 6. e4 {[%clk 0:04:50.1]} 6... Nxc3
{[%clk 0:04:48.6]} 7. Bxc3 {[%clk 0:04:50]} 7... O-O {[%clk 0:04:46.6]} 8. Be2
{[%clk 0:04:45.3]} 8... c5 {[%clk 0:04:44.2]} 9. d5 {[%clk 0:04:44.7]} 9...
Bxc3+ {[%clk 0:04:41.9]} 10. bxc3 {[%clk 0:04:44.6]} 10... e6 {[%clk 0:04:40.5]}
11. Nf3 {[%clk 0:04:42.6]} 11... exd5 {[%clk 0:04:39]} 12. exd5 {[%clk
0:04:42.3]} 12... Re8 {[%clk 0:04:19.2]} 13. O-O {[%clk 0:04:41.1]} 13... Nd7
{[%clk 0:04:17.1]} 14. Re1 {[%clk 0:04:34.7]} 14... Ne5 {[%clk 0:04:12]} 15.
Nxe5 {[%clk 0:04:30.9]} 15... Rxe5 {[%clk 0:04:10.6]} 16. Bf3 {[%clk 0:04:30.5]}
16... Qd6 {[%clk 0:04:05.1]} 17. Rxe5 {[%clk 0:04:23.1]} 17... Qxe5 {[%clk
0:04:04.5]} 18. Qd2 {[%clk 0:04:23]} 18... Qd6 {[%clk 0:03:58.9]} 19. Re1 {[%clk
0:04:18.5]} 19... b5 {[%clk 0:03:56.2]} 20. Re8+ {[%clk 0:03:48.8]} 20... Kg7
{[%clk 0:03:53.5]} 21. Qe2 {[%clk 0:03:47.4]} 21... Bb7 {[%clk 0:03:48.5]} 22.
Rxa8 {[%clk 0:03:32]} 22... Bxa8 {[%clk 0:03:47.5]} 23. Qxb5 {[%clk 0:03:31.2]}
23... Bxd5 {[%clk 0:03:44.5]} 24. Qd3 {[%clk 0:03:23.4]} 24... Qe6 {[%clk
0:03:29.5]} 25. Bxd5 {[%clk 0:03:22.3]} 25... Qe1+ {[%clk 0:03:24.9]} 26. Qf1
{[%clk 0:03:21.9]} 26... Qxc3 {[%clk 0:03:23.8]} 27. h3 {[%clk 0:03:18.2]} 27...
Qd4 {[%clk 0:03:21.6]} 28. Qc4 {[%clk 0:03:13.4]} 28... Qd1+ {[%clk 0:03:03.5]}
29. Kh2 {[%clk 0:03:12.2]} 29... Qd2 {[%clk 0:02:52.9]} 30. Qxc5 {[%clk
0:03:00.6]} 30... Qf4+ {[%clk 0:02:50.6]} 31. g3 {[%clk 0:02:59.1]} 31... Qf5
{[%clk 0:02:46.5]} 32. Qd4+ {[%clk 0:02:54.6]} 32... Kg8 {[%clk 0:02:42.4]} 33.
Bb3 {[%clk 0:02:48.2]} 33... a5 {[%clk 0:02:39.9]} 34. Kg2 {[%clk 0:02:42.4]}
34... Qb5 {[%clk 0:02:34.8]} 35. Qd8+ {[%clk 0:02:35.2]} 35... Kg7 {[%clk
0:02:33]} 36. Qd5 {[%clk 0:02:34.8]} 36... Qb4 {[%clk 0:02:27.3]} 37. Qxf7+
{[%clk 0:02:32.6]} 37... Kh6 {[%clk 0:02:25.1]} 38. h4 {[%clk 0:02:24.5]} 38...
a4 {[%clk 0:02:21.1]} 39. Bd5 {[%clk 0:02:13.3]} 39... Qb5 {[%clk 0:02:01.8]}
40. Qf8+ {[%clk 0:02:07.7]} 40... Kh5 {[%clk 0:01:59.8]} 41. Bf3# {[%clk
0:02:05.5]} 1-0

[Event "Live Chess"]
[Site "Chess.com"]
[Date "2023.05.20"]
[Round "-"]
[White "PackedNote"]
[Black "Wild_Tiger"]
[Result "0-1"]
[WhiteElo "783"]
[BlackElo "1057"]
[TimeControl "300"]
[EndTime "12:14:06 PDT"]
[Termination "Wild_Tiger won by checkmate"]

1. e4 {[%clk 0:04:59.3]} 1... e5 {[%clk 0:04:57.8]} 2. Nf3 {[%clk 0:04:57.7]}
2... Nc6 {[%clk 0:04:57.2]} 3. Bb5 {[%clk 0:04:54.5]} 3... d6 {[%clk 0:04:54.2]}
4. O-O {[%clk 0:04:51.6]} 4... Bd7 {[%clk 0:04:47.4]} 5. Re1 {[%clk 0:04:47.9]}
5... a6 {[%clk 0:04:46.2]} 6. Ba4 {[%clk 0:04:46.9]} 6... Nf6 {[%clk 0:04:45.3]}
7. h3 {[%clk 0:04:43.3]} 7... Be7 {[%clk 0:04:43.3]} 8. c3 {[%clk 0:04:41.5]}
8... O-O {[%clk 0:04:42.5]} 9. d3 {[%clk 0:04:40.7]} 9... b5 {[%clk 0:04:38]}
10. Bb3 {[%clk 0:04:38.7]} 10... Na5 {[%clk 0:04:35.6]} 11. Bd5 {[%clk
0:04:33.2]} 11... Nxd5 {[%clk 0:04:31.7]} 12. exd5 {[%clk 0:04:30.6]} 12... Nb7
{[%clk 0:04:15.9]} 13. Be3 {[%clk 0:04:26]} 13... Nc5 {[%clk 0:04:12.3]} 14. d4
{[%clk 0:04:22.5]} 14... exd4 {[%clk 0:04:08.2]} 15. Bxd4 {[%clk 0:04:17.1]}
15... Bf6 {[%clk 0:03:57.7]} 16. Bxc5 {[%clk 0:04:08.5]} 16... dxc5 {[%clk
0:03:55.5]} 17. Nbd2 {[%clk 0:04:02.7]} 17... Re8 {[%clk 0:03:51]} 18. Qc2
{[%clk 0:03:57.3]} 18... c6 {[%clk 0:03:17.8]} 19. h4 {[%clk 0:03:53.1]} 19...
cxd5 {[%clk 0:03:15.9]} 20. Ng5 {[%clk 0:03:51]} 20... Bxg5 {[%clk 0:03:04.6]}
21. hxg5 {[%clk 0:03:47.8]} 21... Qxg5 {[%clk 0:03:04.1]} 22. Nf3 {[%clk
0:03:44.2]} 22... Qg4 {[%clk 0:02:42.1]} 23. Qd3 {[%clk 0:03:29]} 23... Rxe1+
{[%clk 0:02:33.1]} 24. Rxe1 {[%clk 0:03:27.1]} 24... Be6 {[%clk 0:02:26]} 25.
Qe3 {[%clk 0:03:10.1]} 25... Re8 {[%clk 0:02:19.7]} 26. Qxc5 {[%clk 0:02:57.4]}
26... Qg6 {[%clk 0:02:15.1]} 27. Qc6 {[%clk 0:02:47]} 27... Rc8 {[%clk
0:02:02.8]} 28. Qxa6 {[%clk 0:02:39.9]} 28... Bh3 {[%clk 0:01:58.2]} 29. Qxg6
{[%clk 0:02:31.6]} 29... hxg6 {[%clk 0:01:48.8]} 30. gxh3 {[%clk 0:02:27.6]}
30... Ra8 {[%clk 0:01:44.6]} 31. a3 {[%clk 0:02:25.9]} 31... Kh7 {[%clk
0:01:40.9]} 32. Ne5 {[%clk 0:02:24.1]} 32... f6 {[%clk 0:01:38.2]} 33. Nc6
{[%clk 0:02:18.5]} 33... Ra6 {[%clk 0:01:35.7]} 34. Nd4 {[%clk 0:02:10.9]} 34...
Kh6 {[%clk 0:01:30.7]} 35. Nxb5 {[%clk 0:02:09.2]} 35... Rb6 {[%clk 0:01:28.4]}
36. Nd6 {[%clk 0:02:05.5]} 36... Rxd6 {[%clk 0:01:26.8]} 37. b4 {[%clk
0:02:00.6]} 37... Rc6 {[%clk 0:01:24.6]} 38. Rd1 {[%clk 0:01:57.1]} 38... Rxc3
{[%clk 0:01:22.7]} 39. Rxd5 {[%clk 0:01:54.5]} 39... Rxa3 {[%clk 0:01:22.2]} 40.
b5 {[%clk 0:01:53.8]} 40... Rb3 {[%clk 0:01:20.7]} 41. Kf1 {[%clk 0:01:48]}
41... Rb2 {[%clk 0:01:16]} 42. Ke1 {[%clk 0:01:45.7]} 42... g5 {[%clk
0:01:13.3]} 43. Kd1 {[%clk 0:01:44.1]} 43... Kg6 {[%clk 0:01:12.6]} 44. Ke1
{[%clk 0:01:42.6]} 44... Kf7 {[%clk 0:01:09.6]} 45. f3 {[%clk 0:01:38.5]} 45...
Ke6 {[%clk 0:01:08.2]} 46. Rc5 {[%clk 0:01:30.4]} 46... Kd6 {[%clk 0:01:07.1]}
47. Rc8 {[%clk 0:01:25.9]} 47... Rxb5 {[%clk 0:01:04.3]} 48. Rg8 {[%clk
0:01:25.5]} 48... Rb7 {[%clk 0:01:01.2]} 49. Kf2 {[%clk 0:01:23.8]} 49... Ke6
{[%clk 0:01:00.7]} 50. Kg3 {[%clk 0:01:22.8]} 50... Kf5 {[%clk 0:01:00.2]} 51.
Rh8 {[%clk 0:01:15.9]} 51... Kg6 {[%clk 0:00:57]} 52. h4 {[%clk 0:01:13]} 52...
Rb4 {[%clk 0:00:50.9]} 53. hxg5 {[%clk 0:01:10.1]} 53... Kxg5 {[%clk 0:00:49.4]}
54. Rg8 {[%clk 0:01:08.8]} 54... g6 {[%clk 0:00:47.6]} 55. Kg2 {[%clk
0:01:02.6]} 55... Kf5 {[%clk 0:00:42.3]} 56. Kg3 {[%clk 0:01:01.5]} 56... g5
{[%clk 0:00:40.6]} 57. Kg2 {[%clk 0:00:57.7]} 57... Kf4 {[%clk 0:00:38.5]} 58.
Rf8 {[%clk 0:00:54.7]} 58... f5 {[%clk 0:00:35.8]} 59. Kf2 {[%clk 0:00:50.8]}
59... Rb2+ {[%clk 0:00:34.3]} 60. Ke1 {[%clk 0:00:43.1]} 60... Ke3 {[%clk
0:00:28]} 61. Rxf5 {[%clk 0:00:41.2]} 61... Rb1# {[%clk 0:00:26.8]} 0-1

[Event "Live Chess"]
[Site "Chess.com"]
[Date "2023.05.20"]
[Round "-"]
[White "1600x"]
[Black "OceanFloater"]
[Result "1-0"]
[WhiteElo "1694"]
[BlackElo "979"]
[TimeControl "300"]
[EndTime "12:14:06 PDT"]
[Termination "1600x won by checkmate"]

1. d4 {[%clk 0:04:58.3]} 1... c6 {[%clk 0:04:59.3]} 2. Nc3 {[%clk 0:04:56.4]}
2... d5 {[%clk 0:04:59]} 3. e3 {[%clk 0:04:39.3]} 3... Bf5 {[%clk 0:04:56.3]} 4.
Nh3 {[%clk 0:04:37.6]} 4... e6 {[%clk 0:04:53.9]} 5. g3 {[%clk 0:04:26.7]} 5...
h6 {[%clk 0:04:49.8]} 6. g4 {[%clk 0:04:04.6]} 6... Bg6 {[%clk 0:04:43.8]} 7.
Nf4 {[%clk 0:03:55.6]} 7... Bh7 {[%clk 0:04:38.3]} 8. Bg2 {[%clk 0:03:51.7]}
8... c5 {[%clk 0:04:34.8]} 9. Nd3 {[%clk 0:03:41.7]} 9... c4 {[%clk 0:04:31.6]}
10. Ne5 {[%clk 0:03:40.3]} 10... Ne7 {[%clk 0:04:17.2]} 11. O-O {[%clk
0:03:20.3]} 11... Ng6 {[%clk 0:04:11]} 12. Nxc4 {[%clk 0:03:17.6]} 12... dxc4
{[%clk 0:04:08.4]} 13. Bxb7 {[%clk 0:03:13.7]} 13... Nd7 {[%clk 0:03:47.9]} 14.
Bxa8 {[%clk 0:03:12.1]} 14... Qxa8 {[%clk 0:03:44.9]} 15. f4 {[%clk 0:03:08.9]}
15... Nh4 {[%clk 0:03:43.2]} 16. Qe2 {[%clk 0:03:06.5]} 16... Bd6 {[%clk
0:03:22.8]} 17. e4 {[%clk 0:03:00.8]} 17... Nf6 {[%clk 0:03:12.6]} 18. e5 {[%clk
0:02:58.2]} 18... Nxg4 {[%clk 0:03:06.5]} 19. exd6 {[%clk 0:02:56.5]} 19... Nxh2
{[%clk 0:02:55.8]} 20. Kxh2 {[%clk 0:02:54]} 20... Kd7 {[%clk 0:02:49.6]} 21. d5
{[%clk 0:02:41.7]} 21... g5 {[%clk 0:02:35.7]} 22. Qxc4 {[%clk 0:02:39.2]} 22...
exd5 {[%clk 0:02:32.6]} 23. Qc7+ {[%clk 0:02:33.2]} 23... Ke6 {[%clk 0:02:30.7]}
24. Qe7+ {[%clk 0:02:31]} 24... Kf5 {[%clk 0:02:26.5]} 25. fxg5+ {[%clk
0:02:29.5]} 25... Kg6 {[%clk 0:02:24.6]} 26. Qxf7# {[%clk 0:02:28.2]} 1-0

[Event "Live Chess"]
[Site "Chess.com"]
[Date "2023.05.20"]
[Round "-"]
[White "LiamClery2020"]
[Black "Ayursworld"]
[Result "1-0"]
[WhiteElo "2086"]
[BlackElo "1371"]
[TimeControl "300"]
[EndTime "12:14:08 PDT"]
[Termination "LiamClery2020 won by checkmate"]

1. e4 {[%clk 0:04:59.9]} 1... c5 {[%clk 0:04:56.5]} 2. Nf3 {[%clk 0:04:54.5]}
2... Nc6 {[%clk 0:04:55.2]} 3. Bb5 {[%clk 0:04:53.8]} 3... d6 {[%clk 0:04:51.1]}
4. Bxc6+ {[%clk 0:04:52.5]} 4... bxc6 {[%clk 0:04:49.3]} 5. O-O {[%clk
0:04:52.4]} 5... e5 {[%clk 0:04:47.2]} 6. h3 {[%clk 0:04:51.5]} 6... Nf6 {[%clk
0:04:45]} 7. Re1 {[%clk 0:04:50.8]} 7... Be7 {[%clk 0:04:44]} 8. c3 {[%clk
0:04:49.1]} 8... O-O {[%clk 0:04:41.2]} 9. d4 {[%clk 0:04:49]} 9... cxd4 {[%clk
0:04:38.3]} 10. cxd4 {[%clk 0:04:48.9]} 10... exd4 {[%clk 0:04:37]} 11. Nxd4
{[%clk 0:04:48.8]} 11... c5 {[%clk 0:04:35.9]} 12. Nc6 {[%clk 0:04:45.1]} 12...
Qd7 {[%clk 0:04:31.7]} 13. Nxe7+ {[%clk 0:04:44.6]} 13... Qxe7 {[%clk
0:04:28.6]} 14. Nc3 {[%clk 0:04:44.5]} 14... Re8 {[%clk 0:04:21.7]} 15. Bg5
{[%clk 0:04:42.8]} 15... h6 {[%clk 0:04:19.6]} 16. Nd5 {[%clk 0:04:41.1]} 16...
Qd8 {[%clk 0:04:06.7]} 17. Bxf6 {[%clk 0:04:39.2]} 17... gxf6 {[%clk 0:04:04.1]}
18. Qh5 {[%clk 0:04:38.6]} 18... Kg7 {[%clk 0:04:00.3]} 19. Re3 {[%clk
0:04:37.1]} 19... Be6 {[%clk 0:03:57.9]} 20. Rg3+ {[%clk 0:04:36.2]} 20... Kh8
{[%clk 0:03:54.8]} 21. Qxh6# {[%clk 0:04:35.4]} 1-0

[Event "Live Chess"]
[Site "Chess.com"]
[Date "2023.05.20"]
[Round "-"]
[White "Zeraora719"]
[Black "GEMdzq"]
[Result "0-1"]
[WhiteElo "796"]
[BlackElo "2243"]
[TimeControl "300"]
[EndTime "12:14:12 PDT"]
[Termination "GEMdzq won by checkmate"]

1. e4 {[%clk 0:04:54.6]} 1... d6 {[%clk 0:04:59.2]} 2. d4 {[%clk 0:04:24.2]}
2... Nf6 {[%clk 0:04:58]} 3. f3 {[%clk 0:04:09.6]} 3... g6 {[%clk 0:04:56]} 4.
Ne2 {[%clk 0:04:04]} 4... Bg7 {[%clk 0:04:54.9]} 5. Nbc3 {[%clk 0:03:54.7]} 5...
c6 {[%clk 0:04:51.5]} 6. g4 {[%clk 0:03:42.4]} 6... h5 {[%clk 0:04:41.6]} 7. g5
{[%clk 0:03:35.4]} 7... Nfd7 {[%clk 0:04:40.7]} 8. Bg2 {[%clk 0:03:29.2]} 8...
b5 {[%clk 0:04:31.1]} 9. a3 {[%clk 0:03:20.8]} 9... Nb6 {[%clk 0:04:26.8]} 10.
O-O {[%clk 0:03:06.6]} 10... h4 {[%clk 0:04:01.5]} 11. h3 {[%clk 0:02:56.5]}
11... Bd7 {[%clk 0:03:57.8]} 12. f4 {[%clk 0:02:46.9]} 12... Qc8 {[%clk
0:03:56.6]} 13. Qd3 {[%clk 0:02:39.6]} 13... Na6 {[%clk 0:03:51.2]} 14. f5
{[%clk 0:02:32.2]} 14... b4 {[%clk 0:03:48.7]} 15. Nd1 {[%clk 0:02:19.3]} 15...
c5 {[%clk 0:03:46.4]} 16. fxg6 {[%clk 0:02:00.4]} 16... fxg6 {[%clk 0:03:44.7]}
17. e5 {[%clk 0:01:50.3]} 17... Bf5 {[%clk 0:03:43.5]} 18. Rxf5 {[%clk
0:01:42.3]} 18... gxf5 {[%clk 0:03:31.2]} 19. exd6 {[%clk 0:01:35.6]} 19... exd6
{[%clk 0:03:16.6]} 20. Bxa8 {[%clk 0:01:28.8]} 20... Nxa8 {[%clk 0:03:11]} 21.
Ne3 {[%clk 0:01:21.6]} 21... O-O {[%clk 0:03:09.2]} 22. Qc4+ {[%clk 0:01:14.5]}
22... Kh7 {[%clk 0:03:02.5]} 23. dxc5 {[%clk 0:01:08.7]} 23... f4 {[%clk
0:02:48.2]} 24. Nxf4 {[%clk 0:01:02.4]} 24... Qxc5 {[%clk 0:02:39]} 25. Qd3+
{[%clk 0:00:54.8]} 25... Kg8 {[%clk 0:02:30.4]} 26. Ne6 {[%clk 0:00:45.7]} 26...
Qe5 {[%clk 0:02:24.4]} 27. Nxf8 {[%clk 0:00:39.3]} 27... Nc5 {[%clk 0:02:11.8]}
28. Qc4+ {[%clk 0:00:31.5]} 28... Kxf8 {[%clk 0:02:10.5]} 29. axb4 {[%clk
0:00:22.6]} 29... Nb6 {[%clk 0:02:00.9]} 30. Qg8+ {[%clk 0:00:16.5]} 30... Kxg8
{[%clk 0:01:59.3]} 31. Nc4 {[%clk 0:00:11.1]} 31... Qg3+ {[%clk 0:01:55.3]} 32.
Kf1 {[%clk 0:00:09.3]} 32... Ne4 {[%clk 0:01:52.8]} 33. Rxa7 {[%clk 0:00:07.5]}
33... Qf2# {[%clk 0:01:51.6]} 0-1